fUST/lending_fUST_20240218
["ID","MTS","AMOUNT","RATE_DAILY","PERIOD"]
[314362580,1708231839724,-500.0,0.00027397,2]
[314362581,1708231839733,-500.0,0.00027397,2]
[314362582,1708231839742,-500.0,0.00027397,2]
[314362583,1708231839752,-500.0,0.00027397,2]
[314362584,1708231839761,-502.27713217,0.00027397,2]
[314362585,1708231839771,-506.36604437,0.00027397,2]
[314362586,1708231839781,-500.0,0.00027397,2]
[314362587,1708231839792,-500.0,0.00027397,2]
[314362588,1708231839802,-500.0,0.00027397,2]
[314362589,1708231839811,-500.0,0.00027397,2]
[314362590,1708231839821,-500.0,0.00027397,2]
[314362591,1708231839830,-500.0,0.00027397,2]
[314362592,1708231839839,-500.0,0.00027397,2]
[314362593,1708231839848,-500.0,0.00027397,2]
[314362594,1708231839857,-500.0,0.00027397,2]
[314362595,1708231839866,-500.0,0.00027397,2]
[314362597,1708231839875,-500.0,0.00027397,2]
[314362598,1708231839884,-500.0,0.00027397,2]
[314362599,1708231839893,-643.61,0.00027397,2]
[314362600,1708231839902,-540.63992941,0.00027397,2]
[314362601,1708231839912,-500.0,0.00027397,2]
[314362602,1708231839921,-500.0,0.00027397,2]
[314362603,1708231839930,-500.0,0.00027397,2]
[314362604,1708231839939,-500.0,0.00027397,2]
[314362605,1708231839947,-500.0,0.00027397,2]
[314362606,1708231839957,-500.0,0.00027397,2]
[314362607,1708231839966,-500.0,0.00027397,2]
[314362608,1708231839976,-500.0,0.00027397,2]
[314362609,1708231839987,-944.81,0.00027397,2]
[314362610,1708231839997,-500.0,0.00027397,2]
[314362611,1708231840006,-500.0,0.00027397,2]
[314362612,1708231840015,-600.01697442,0.00027397,2]
[314362613,1708231840026,-500.0,0.00027397,2]
[314362614,1708231840035,-500.0,0.00027397,2]
[314362615,1708231840047,-500.0,0.00027397,2]
[314362616,1708231840058,-894.78,0.00027397,2]
[314362617,1708231840067,-4983.08,0.00027397,2]
[314362618,1708231840076,-500.0,0.00027397,2]
[314362619,1708231840085,-370.98777162,0.00027397,2]
[314362620,1708231840094,-500.0,0.00027397,2]
[314362621,1708231840104,-4907.19,0.00027397,2]
[314362622,1708231840113,-486.24233895,0.00027397,2]
[314362623,1708231840122,-500.0,0.00027397,2]
[314362624,1708231840131,-500.0,0.00027397,2]
[314362625,1708231840140,-501.95411402,0.00027397,2]
[314362626,1708231840149,-500.0,0.00027397,2]
[314362627,1708231840158,-3900.21,0.00027397,2]
[314362628,1708231840167,-500.0,0.00027397,2]
[314362629,1708231840177,-678.8,0.00027397,2]
[314362630,1708231840186,-500.0,0.00027397,2]
[314362631,1708231840195,-500.0,0.00027397,2]
[314362632,1708231840204,-500.0,0.00027397,2]
[314362633,1708231840213,-500.0,0.00027397,2]
[314362634,1708231840222,-455.52626437,0.00027397,2]
[314362635,1708231840231,-500.0,0.00027397,2]
[314362636,1708231840240,-390.0,0.00027397,2]
[314362637,1708231840249,-500.0,0.00027397,2]
[314362638,1708231840258,-1940.04,0.00027397,2]
[314362639,1708231840267,-500.0,0.00027397,2]
[314362640,1708231840277,-500.0,0.00027397,2]
[314362641,1708231840286,-500.0,0.00027397,2]
[314362642,1708231840295,-500.0,0.00027397,2]
[314362643,1708231840304,-500.0,0.00027397,2]
[314362644,1708231840313,-500.0,0.00027397,2]
[314362645,1708231840322,-3149.12,0.00027397,2]
[314362646,1708231840331,-610.54,0.00027397,2]
[314362647,1708231840340,-500.0,0.00027397,2]
[314362648,1708231840349,-500.0,0.00027397,2]
[314362649,1708231840358,-506.08199157,0.00027397,2]
[314362650,1708231840368,-500.0,0.00027397,2]
[314362651,1708231840377,-500.0,0.00027397,2]
[314362652,1708231840386,-1036.93,0.00027397,2]
[314362653,1708231840395,-923.99,0.00027397,2]
[314362654,1708231840404,-500.0,0.00027397,2]
[314362655,1708231840484,-500.0,0.00027397,2]
[314362656,1708231840494,-500.0,0.00027397,2]
[314362657,1708231840503,-3693.12,0.00027397,2]
[314362658,1708231840512,-1000.0,0.00027397,2]
[314362659,1708231840521,-500.0,0.00027397,2]
[314362660,1708231840530,-500.0,0.00027397,2]
[314362661,1708231840540,-156.98626229,0.00027465,2]
[314362662,1708231840549,-1111.80521907,0.00027465,2]
[314362663,1708231840558,-156.66614977,0.00027571,2]
[314362664,1708231840567,-500.0,0.00027671,2]
[314362665,1708231840576,-500.0,0.00027671,2]
[314362666,1708231840586,-500.0,0.00027671,2]
[314362667,1708231840595,-500.0,0.00027671,2]
[314362668,1708231840605,-500.0,0.00027671,2]
[314362669,1708231840614,-500.0,0.00027671,2]
[314362670,1708231840623,-507.26136715,0.00027671,2]
[314362671,1708231840633,-254.83079031,0.00027671,2]
[314362672,1708231840642,-500.0,0.00027671,2]
[314362673,1708231840650,-500.0,0.00027671,2]
[314362674,1708231840661,-500.0,0.00027671,2]
[314362675,1708231840670,-151.20673677,0.00027671,2]
[314362676,1708231840680,-534.04189511,0.00027671,2]
[314362677,1708231840689,-526.51649215,0.00027671,2]
[314362678,1708231840699,-500.0,0.00027671,2]
[314362679,1708231840708,-500.0,0.00027671,2]
[314362680,1708231840717,-500.0,0.00027671,2]
[314362681,1708231840726,-500.0,0.00027671,2]
[314362682,1708231840735,-373.61471554,0.00027671,2]
[314362683,1708231840744,-500.0,0.00027671,2]
[314362684,1708231840753,-500.0,0.00027671,2]
[314362685,1708231840762,-500.0,0.00027671,2]
[314362686,1708231840772,-500.0,0.00027671,2]
[314362687,1708231840782,-268.12799793,0.00027671,2]
[314362688,1708231840791,-699.03,0.00027671,2]
[314362689,1708231840800,-500.0,0.00027671,2]
[314362690,1708231840809,-500.0,0.00027671,2]
[314362691,1708231840818,-519.71443797,0.00027671,2]
[314362692,1708231840827,-500.0,0.00027671,2]
[314362693,1708231840836,-1000.0,0.00027671,2]
[314362694,1708231840845,-500.0,0.00027671,2]
[314362695,1708231840854,-467.44471957,0.00027671,2]
[314362696,1708231840863,-500.0,0.00027671,2]
[314362697,1708231840873,-590.46145876,0.00027671,2]
[314362698,1708231840882,-500.0,0.00027671,2]
[314362699,1708231840891,-500.0,0.00027671,2]
[314362700,1708231840900,-500.0,0.00027671,2]
[314362701,1708231840909,-509.42747849,0.00027671,2]
[314362702,1708231840919,-500.0,0.00027671,2]
[314362703,1708231840928,-500.0,0.00027671,2]
[314362704,1708231840937,-500.0,0.00027671,2]
[314362705,1708231840947,-500.0,0.00027671,2]
[314362706,1708231840957,-500.0,0.00027671,2]
[314362707,1708231840967,-500.0,0.00027671,2]
[314362708,1708231840978,-500.0,0.00027671,2]
[314362709,1708231840987,-500.0,0.00027671,2]
[314362710,1708231840996,-500.0,0.00027671,2]
[314362711,1708231841005,-500.0,0.00027671,2]
[314362712,1708231841014,-504.02859752,0.00027671,2]
[314362713,1708231841025,-500.0,0.00027671,2]
[314362714,1708231841033,-500.0,0.00027671,2]
[314362715,1708231841042,-517.74321469,0.00027671,2]
[314362716,1708231841052,-500.0,0.00027671,2]
[314362717,1708231841061,-500.0,0.00027671,2]
[314362718,1708231841070,-500.0,0.00027671,2]
[314362719,1708231841079,-504.17341533,0.00027671,2]
[314362720,1708231841088,-1012.44,0.00027671,2]
[314362721,1708231841097,-500.0,0.00027671,2]
[314362722,1708231841106,-500.0,0.00027671,2]
[314362723,1708231841115,-344.38303373,0.00027671,2]
[314362724,1708231841125,-564.59138388,0.00027671,2]
[314362725,1708231841134,-500.0,0.00027671,2]
[314362726,1708231841143,-937.13,0.00027671,2]
[314362727,1708231841153,-500.0,0.00027671,2]
[314362728,1708231841161,-500.0,0.00027671,2]
[314362729,1708231841170,-500.0,0.00027671,2]
[314362730,1708231841179,-500.0,0.00027671,2]
[314362731,1708231841188,-503.19358489,0.00027671,2]
[314362732,1708231841197,-503.89435291,0.00027671,2]
[314362733,1708231841209,-514.17147117,0.00027671,2]
[314362734,1708231841218,-500.0,0.00027671,2]
[314362735,1708231841227,-500.0,0.00027671,2]
[314362736,1708231841236,-515.23952985,0.00027671,2]
[314362737,1708231841245,-504.28661349,0.00027671,2]
[314362738,1708231841254,-500.0,0.00027671,2]
[314362739,1708231841263,-500.0,0.00027671,2]
[314362740,1708231841273,-500.0,0.00027671,2]
[314362741,1708231841282,-500.0,0.00027671,2]
[314362742,1708231841291,-502.62782781,0.00027671,2]
[314362743,1708231841300,-504.30172405,0.00027671,2]
[314362744,1708231841310,-500.0,0.00027671,2]
[314362745,1708231841319,-500.0,0.00027671,2]
[314362746,1708231841328,-500.0,0.00027671,2]
[314362747,1708231841337,-540.35,0.00027671,2]
[314362748,1708231841346,-500.0,0.00027671,2]
[314362749,1708231841355,-503.19452163,0.00027671,2]
[314362750,1708231841365,-500.0,0.00027671,2]
[314362751,1708231841375,-480.011166,0.00027671,2]
[314362752,1708231841384,-500.0,0.00027671,2]
[314362753,1708231841393,-332.94825931,0.00027671,2]
[314362754,1708231841402,-500.0,0.00027671,2]
[314362755,1708231841412,-500.0,0.00027671,2]
[314362756,1708231841421,-190.02989101,0.00027671,2]
[314362757,1708231841431,-500.0,0.00027671,2]
[314362758,1708231841440,-559.04491092,0.00027671,2]
[314362759,1708231841451,-578.5150455,0.00027671,2]
[314362760,1708231841460,-500.0,0.00027671,2]
[314362761,1708231841470,-602.01,0.00027671,2]
[314362762,1708231841479,-500.0,0.00027671,2]
[314362763,1708231841488,-500.0,0.00027671,2]
[314362764,1708231841497,-500.0,0.00027671,2]
[314362765,1708231841506,-500.0,0.00027671,2]
[314362766,1708231841515,-500.0,0.00027671,2]
[314362767,1708231841524,-765.44,0.00027671,2]
[314362768,1708231841533,-176.65796769,0.00027671,2]
[314362769,1708231841542,-6015.14,0.00027671,2]
[314362770,1708231841551,-500.0,0.00027671,2]
[314362771,1708231841560,-527.43,0.00027671,2]
[314362772,1708231841570,-512.2438589,0.00027671,2]
[314362773,1708231841579,-528.81669082,0.00027671,2]
[314362774,1708231841588,-500.0,0.00027671,2]
[314362775,1708231841598,-500.0,0.00027671,2]
[314362776,1708231841607,-500.0,0.00027671,2]
[314362777,1708231841616,-558.8239809,0.00027671,2]
[314362778,1708231841625,-500.0,0.00027671,2]
[314362779,1708231841634,-500.0,0.00027671,2]
[314362780,1708231841643,-479.12461434,0.00027671,2]
[314362781,1708231841652,-500.0,0.00027671,2]
[314362782,1708231841661,-500.0,0.00027671,2]
[314362783,1708231841670,-500.0,0.00027671,2]
[314362784,1708231841679,-500.0,0.00027671,2]
[314362785,1708231841689,-500.0,0.00027671,2]
[314362786,1708231841698,-500.0,0.00027671,2]
[314362787,1708231841708,-500.0,0.00027671,2]
[314362788,1708231841716,-500.0,0.00027671,2]
[314362789,1708231841726,-500.0,0.00027671,2]
[314362790,1708231841735,-500.0,0.00027671,2]
[314362791,1708231841745,-500.0,0.00027671,2]
[314362792,1708231841754,-516.22443742,0.00027671,2]
[314362793,1708231841763,-643.61,0.00027671,2]
[314362794,1708231841772,-500.0,0.00027671,2]
[314362795,1708231841781,-500.0,0.00027671,2]
[314362796,1708231841790,-500.0,0.00027671,2]
[314362797,1708231841799,-500.0,0.00027671,2]
[314362798,1708231841809,-500.0,0.00027671,2]
[314362799,1708231841818,-504.86893184,0.00027671,2]
[314362800,1708231841827,-500.0,0.00027671,2]
[314362801,1708231841836,-500.0,0.00027671,2]
[314362802,1708231841845,-944.81,0.00027671,2]
[314362803,1708231841854,-500.0,0.00027671,2]
[314362804,1708231841863,-500.0,0.00027671,2]
[314362805,1708231841872,-500.0,0.00027671,2]
[314362806,1708231841881,-500.0,0.00027671,2]
[314362807,1708231841891,-894.78,0.00027671,2]
[314362808,1708231841899,-4983.08,0.00027671,2]
[314362809,1708231841909,-500.0,0.00027671,2]
[314362810,1708231841918,-500.0,0.00027671,2]
[314362811,1708231841927,-4907.19,0.00027671,2]
[314362812,1708231841936,-500.0,0.00027671,2]
[314362813,1708231841945,-500.0,0.00027671,2]
[314362814,1708231841955,-500.0,0.00027671,2]
[314362815,1708231841964,-3900.21,0.00027671,2]
[314362816,1708231841974,-500.0,0.00027671,2]
[314362817,1708231841986,-678.8,0.00027671,2]
[314362818,1708231841995,-500.0,0.00027671,2]
[314362819,1708231842005,-500.0,0.00027671,2]
[314362820,1708231842014,-500.0,0.00027671,2]
[314362821,1708231842025,-500.0,0.00027671,2]
[314362822,1708231842034,-500.0,0.00027671,2]
[314362823,1708231842043,-390.0,0.00027671,2]
[314362824,1708231842053,-500.0,0.00027671,2]
[314362825,1708231842063,-1940.04,0.00027671,2]
[314362826,1708231842073,-500.0,0.00027671,2]
[314362827,1708231842082,-500.0,0.00027671,2]
[314362828,1708231842092,-500.0,0.00027671,2]
[314362829,1708231842100,-500.0,0.00027671,2]
[314362830,1708231842109,-500.0,0.00027671,2]
[314362831,1708231842118,-500.0,0.00027671,2]
[314362832,1708231842127,-3149.12,0.00027671,2]
[314362833,1708231842136,-610.54,0.00027671,2]
[314362834,1708231842175,-500.0,0.00027671,2]
[314362835,1708231842184,-241.62581266,0.00027671,2]
[314362836,1708231842193,-500.0,0.00027671,2]
[314362837,1708231842204,-500.0,0.00027671,2]
[314362838,1708231842213,-1036.93,0.00027671,2]
[314362839,1708231842223,-923.99,0.00027671,2]
[314362840,1708231842233,-500.0,0.00027671,2]
[314362842,1708231842242,-500.0,0.00027671,2]
[314362843,1708231842252,-500.0,0.00027671,2]
[314362845,1708231842327,-3693.12,0.00027671,2]
[314362846,1708231842337,-500.0,0.00027671,2]
[314362847,1708231842347,-500.0,0.00027671,2]
[314362848,1708231842356,-156.66614977,0.00027845,2]
[314362849,1708231842365,-500.0,0.00027945,2]
[314362850,1708231842374,-500.0,0.00027945,2]
[314362851,1708231842384,-500.0,0.00027945,2]
[314362853,1708231842393,-500.0,0.00027945,2]
[314362855,1708231842403,-500.0,0.00027945,2]
[314362858,1708231842411,-618.67348345,0.00027945,2]
[314362861,1708231842421,-500.0,0.00027945,2]
[314362863,1708231842430,-500.0,0.00027945,2]
[314362865,1708231842439,-699.03,0.00027945,2]
[314362867,1708231842448,-500.0,0.00027945,2]
[314362869,1708231842458,-500.0,0.00027945,2]
[314362871,1708231842467,-205.61204388,0.00027945,2]
[314362873,1708231842476,-500.0,0.00027945,2]
[314362874,1708231842485,-500.0,0.00027945,2]
[314362875,1708231842494,-500.0,0.00027945,2]
[314362876,1708231842503,-500.0,0.00027945,2]
[314362877,1708231842512,-500.0,0.00027945,2]
[314362878,1708231842521,-500.0,0.00027945,2]
[314362879,1708231842530,-500.0,0.00027945,2]
[314362880,1708231842539,-500.0,0.00027945,2]
[314362881,1708231842548,-500.0,0.00027945,2]
[314362882,1708231842556,-283.64291056,0.00027945,2]
[314362883,1708231842565,-1012.44,0.00027945,2]
[314362884,1708231842574,-500.0,0.00027945,2]
[314362885,1708231842583,-500.0,0.00027945,2]
[314362886,1708231842592,-937.13,0.00027945,2]
[314362887,1708231842601,-500.0,0.00027945,2]
[314362888,1708231842610,-500.0,0.00027945,2]
[314362890,1708231842619,-507.44634738,0.00027945,2]
[314362891,1708231842628,-500.0,0.00027945,2]
[314362892,1708231842637,-616.22470133,0.00027945,2]
[314362893,1708231842647,-500.0,0.00027945,2]
[314362894,1708231842655,-500.0,0.00027945,2]
[314362895,1708231842664,-500.0,0.00027945,2]
[314362896,1708231842674,-500.0,0.00027945,2]
[314362897,1708231842683,-500.0,0.00027945,2]
[314362898,1708231842692,-500.0,0.00027945,2]
[314362899,1708231842702,-500.0,0.00027945,2]
[314362900,1708231842711,-540.35,0.00027945,2]
[314362901,1708231842720,-500.0,0.00027945,2]
[314362902,1708231842729,-500.0,0.00027945,2]
[314362903,1708231842739,-500.0,0.00027945,2]
[314362904,1708231842748,-500.0,0.00027945,2]
[314362905,1708231842757,-602.01,0.00027945,2]
[314362906,1708231842766,-500.0,0.00027945,2]
[314362907,1708231842777,-500.0,0.00027945,2]
[314362908,1708231842786,-765.44,0.00027945,2]
[314362909,1708231842795,-6015.14,0.00027945,2]
[314362910,1708231842805,-500.0,0.00027945,2]
[314362911,1708231842814,-527.43,0.00027945,2]
[314362912,1708231842824,-500.0,0.00027945,2]
[314362913,1708231842833,-500.0,0.00027945,2]
[314362914,1708231842842,-500.0,0.00027945,2]
[314362915,1708231842851,-500.0,0.00027945,2]
[314362916,1708231842860,-500.0,0.00027945,2]
[314362917,1708231842870,-500.0,0.00027945,2]
[314362918,1708231842879,-500.0,0.00027945,2]
[314362919,1708231842888,-500.0,0.00027945,2]
[314362920,1708231842897,-500.0,0.00027945,2]
[314362921,1708231842906,-500.0,0.00027945,2]
[314362922,1708231842915,-643.61,0.00027945,2]
[314362923,1708231842924,-500.0,0.00027945,2]
[314362924,1708231842933,-500.0,0.00027945,2]
[314362925,1708231842941,-944.81,0.00027945,2]
[314362926,1708231842952,-500.0,0.00027945,2]
[314362927,1708231842961,-534.11514124,0.00027945,2]
[314362928,1708231842971,-894.78,0.00027945,2]
[314362929,1708231842983,-4983.08,0.00027945,2]
[314362930,1708231842992,-500.0,0.00027945,2]
[314362931,1708231843001,-4907.19,0.00027945,2]
[314362932,1708231843010,-500.0,0.00027945,2]
[314362933,1708231843020,-3900.21,0.00027945,2]
[314362934,1708231843030,-500.0,0.00027945,2]
[314362935,1708231843039,-678.8,0.00027945,2]
[314362936,1708231843048,-500.0,0.00027945,2]
[314362937,1708231843057,-500.0,0.00027945,2]
[314362938,1708231843067,-390.0,0.00027945,2]
[314362939,1708231843077,-1940.04,0.00027945,2]
[314362940,1708231843086,-500.0,0.00027945,2]
[314362941,1708231843095,-500.0,0.00027945,2]
[314362942,1708231843104,-500.0,0.00027945,2]
[314362943,1708231843114,-3149.12,0.00027945,2]
[314362944,1708231843123,-610.54,0.00027945,2]
[314362945,1708231843133,-500.0,0.00027945,2]
[314362946,1708231843142,-1036.93,0.00027945,2]
[314362947,1708231843152,-923.99,0.00027945,2]
[314362948,1708231843162,-500.0,0.00027945,2]
[314362949,1708231843173,-500.0,0.00027945,2]
[314362950,1708231843182,-3693.12,0.00027945,2]
[314362951,1708231843192,-160.65196591,0.00028219,3]
[314362952,1708231843204,-607.2380826,0.00028219,2]
[314362953,1708231843215,-500.0,0.00028219,2]
[314362954,1708231843225,-500.0,0.00028219,2]
[314362955,1708231843235,-500.0,0.00028219,2]
[314362956,1708231843245,-500.0,0.00028219,2]
[314362957,1708231843256,-500.0,0.00028219,2]
[314362958,1708231843268,-699.03,0.00028219,2]
[314362959,1708231843278,-500.0,0.00028219,2]
[314362960,1708231843288,-500.0,0.00028219,2]
[314362961,1708231843298,-500.0,0.00028219,2]
[314362962,1708231843308,-1012.44,0.00028219,2]
[314362963,1708231843317,-394.90630849,0.00028219,2]
[314362964,1708231843326,-937.13,0.00028219,2]
[314362965,1708231843336,-500.0,0.00028219,2]
[314362966,1708231843345,-500.0,0.00028219,2]
[314362967,1708231843354,-540.35,0.00028219,2]
[314362968,1708231843363,-500.0,0.00028219,2]
[314362969,1708231843372,-602.01,0.00028219,2]
[314362970,1708231843382,-765.44,0.00028219,2]
[314362971,1708231843391,-6015.14,0.00028219,2]
[314362972,1708231843400,-527.43,0.00028219,2]
[314362973,1708231843410,-500.0,0.00028219,2]
[314362974,1708231843419,-500.0,0.00028219,2]
[314362975,1708231843428,-500.0,0.00028219,2]
[314362976,1708231843437,-185.60340881,0.00028219,2]
[314362977,1708231843448,-500.0,0.00028219,2]
[314362978,1708231843461,-500.0,0.00028219,2]
[314362979,1708231843470,-500.0,0.00028219,2]
[314362980,1708231843479,-68.51301863,0.00028219,2]
[314362981,1708231843584,-431.48698137,0.00028219,2]
[314362982,1708231843593,-643.61,0.00028219,2]
[314362983,1708231843602,-944.81,0.00028219,2]
[314362984,1708231843611,-500.0,0.00028219,2]
[314362985,1708231843620,-894.78,0.00028219,2]
[314362986,1708231843629,-4983.08,0.00028219,2]
[314362987,1708231843638,-500.0,0.00028219,2]
[314362988,1708231843648,-4907.19,0.00028219,2]
[314362989,1708231843657,-373.21,0.00028219,2]
[314362990,1708231843666,-3900.21,0.00028219,2]
[314362991,1708231843675,-500.0,0.00028219,2]
[314362992,1708231843684,-678.8,0.00028219,2]
[314362993,1708231843693,-500.0,0.00028219,2]
[314362994,1708231843702,-500.0,0.00028219,2]
[314362995,1708231843711,-1940.04,0.00028219,2]
[314362996,1708231843720,-500.0,0.00028219,2]
[314362997,1708231843729,-500.0,0.00028219,2]
[314362998,1708231843738,-3149.12,0.00028219,2]
[314362999,1708231843747,-610.54,0.00028219,2]
[314363000,1708231843756,-1036.93,0.00028219,2]
[314363001,1708231843765,-923.99,0.00028219,2]
[314363002,1708231843774,-500.0,0.00028219,2]
[314363003,1708231843784,-3693.12,0.00028219,2]
[314363004,1708231843793,-204.27099136,0.00028393,2]
[314363005,1708231843802,-500.0,0.00028493,2]
[314363006,1708231843811,-500.0,0.00028493,2]
[314363007,1708231843820,-502.19154516,0.00028493,2]
[314363008,1708231843829,-500.0,0.00028493,2]
[314363009,1708231843838,-500.0,0.00028493,2]
[314363010,1708231843848,-699.03,0.00028493,2]
[314363011,1708231843857,-500.0,0.00028493,2]
[314363012,1708231843867,-500.0,0.00028493,2]
[314363013,1708231843942,-500.0,0.00028493,2]
[314363014,1708231843952,-1012.44,0.00028493,2]
[314363015,1708231843961,-937.13,0.00028493,2]
[314363016,1708231843970,-500.0,0.00028493,2]
[314363017,1708231843979,-500.0,0.00028493,2]
[314363018,1708231843993,-540.35,0.00028493,2]
[314363019,1708231844002,-500.0,0.00028493,2]
[314363020,1708231844011,-602.01,0.00028493,2]
[314363021,1708231844019,-765.44,0.00028493,2]
[314363022,1708231844029,-6015.14,0.00028493,2]
[314363023,1708231844038,-527.43,0.00028493,2]
[314363024,1708231844047,-500.0,0.00028493,2]
[314363025,1708231844055,-500.0,0.00028493,2]
[314363026,1708231844066,-500.0,0.00028493,2]
[314363027,1708231844076,-500.0,0.00028493,2]
[314363028,1708231844086,-500.0,0.00028493,2]
[314363029,1708231844095,-500.0,0.00028493,2]
[314363030,1708231844104,-500.0,0.00028493,2]
[314363031,1708231844114,-643.61,0.00028493,2]
[314363032,1708231844123,-944.81,0.00028493,2]
[314363033,1708231844133,-500.0,0.00028493,2]
[314363034,1708231844143,-894.78,0.00028493,2]
[314363035,1708231844154,-4983.08,0.00028493,2]
[314363036,1708231844163,-500.0,0.00028493,2]
[314363037,1708231844174,-4907.19,0.00028493,2]
[314363038,1708231844183,-283.99763149,0.00028493,2]
[314363039,1708231844265,-0.00187757,0.0002767,2]
[314363052,1708232056933,310.59544387,0.000176,2]
[314363053,1708232970095,-261.53905327,0.00020973,2]
[314363054,1708232970115,-254.2526219,0.00020974,2]
[314363060,1708233034482,-258.33133698,0.00020999,2]
[314363061,1708233034491,-11666.28621322,0.00021,2]
[314363062,1708233034502,-6451.19020492,0.00021,2]
[314363063,1708233034511,-1478.36948767,0.00024946,2]
[314363065,1708233034520,-1478.36948767,0.00024947,2]
[314363066,1708233034529,-24900.0,0.00024948,2]
[314363067,1708233034538,-168.313164,0.00026046,2]
[314363068,1708233034547,-1861.65157918,0.00026119,2]
[314363069,1708233034556,-299.8067084,0.0002614,2]
[314363070,1708233034565,-13515.12372121,0.0002614,2]
[314363071,1708233034576,-481.307855,0.0002614,2]
[314363072,1708233034587,-171.69943892,0.0002614,2]
[314363073,1708233038042,-1596.75519083,0.0002614,2]
[314363074,1708233038099,-2599.05354703,0.0002614,2]
[314363075,1708233038109,-719.50260371,0.0002614,2]
[314363076,1708233038118,-330.64495168,0.00027066,3]
[314363077,1708233038128,-153.9009655,0.00027123,2]
[314363078,1708233038137,-153.0,0.00027123,2]
[314363079,1708233038146,-153.0,0.00027123,2]
[314363080,1708233038155,-226.802199,0.00027123,2]
[314363081,1708233038165,-153.0,0.00027123,2]
[314363082,1708233038174,-200.3193593,0.00027123,2]
[314363083,1708233038183,-1587.75,0.00027276,3]
[314363084,1708233038193,-1905.31,0.00027286,3]
[314363085,1708233038202,-419.25,0.00027287,3]
[314363086,1708233038211,-500.0,0.00027296,2]
[314363087,1708233038221,-418.12115422,0.00027296,2]
[314363088,1708233038230,-500.0,0.00027296,2]
[314363089,1708233038239,-500.0,0.00027296,2]
[314363090,1708233038249,-238.42482762,0.00027296,2]
[314363091,1708233038258,-500.0,0.00027296,2]
[314363092,1708233038268,-500.0,0.00027296,2]
[314363093,1708233038279,-500.0,0.00027296,2]
[314363094,1708233038288,-500.0,0.00027296,2]
[314363095,1708233038298,-441.08884816,0.00027296,2]
[314363096,1708233038308,-500.0,0.00027296,2]
[314363097,1708233038319,-500.0,0.00027296,2]
[314363098,1708233038329,-180.41614724,0.00027296,2]
[314363099,1708233038338,-619.10977724,0.00027296,2]
[314363100,1708233038347,-108486.61249616,0.00027297,2]
[314363101,1708233038356,-258.86209338,0.00027297,2]
[314363102,1708233038365,-258.86209334,0.00027366,2]
[314363103,1708233038374,-263.3213582,0.00027396,2]
[314363104,1708233038384,-500.0,0.00027397,2]
[314363105,1708233038393,-500.0,0.00027397,2]
[314363106,1708233038402,-500.0,0.00027397,2]
[314363107,1708233038411,-500.0,0.00027397,2]
[314363108,1708233038421,-500.0,0.00027397,2]
[314363109,1708233038430,-225.96099461,0.00027397,2]
[314363110,1708233038439,-500.0,0.00027397,2]
[314363111,1708233038447,-500.0,0.00027397,2]
[314363112,1708233038456,-551.95411662,0.00027397,2]
[314363113,1708233038466,-500.0,0.00027397,2]